[Event "MČR v rapid šachu družstev 2019"]
[Site "Teplice, Czech Republic"]
[Date "2019.09.15"]
[Round "3.9"]
[White "Vykouk, Jan"]
[Black "Vojta, Tomas"]
[Result "1/2-1/2"]
[TimeControl "15 min. + 5s"]
[WhiteElo "2428"]
[BlackElo "2402"]

1. e4 {[%clk 00:15:07]} {[%emt 00:00:02]} c6 {[%clk 00:15:09]} {[%emt
00:00:01]} 2. Nf3 {[%clk 00:15:01]} {[%emt 00:00:12]} d5 {[%clk 00:15:12]}
{[%emt 00:00:02]} 3. Nc3 {[%clk 00:15:04]} {[%emt 00:00:02]} dxe4 {[%clk
00:15:15]} {[%emt 00:00:02]} 4. Nxe4 {[%clk 00:15:07]} {[%emt 00:00:01]} Nf6
{[%clk 00:15:19]} 5. Qe2 {[%clk 00:15:10]} {[%emt 00:00:03]} Nxe4 {[%clk
00:15:04]} {[%emt 00:00:20]} 6. Qxe4 {[%clk 00:15:13]} {[%emt 00:00:02]} Qd5
{[%clk 00:14:35]} {[%emt 00:00:34]} 7. Qe3 {[%clk 00:14:44]} {[%emt 00:00:34]}
Bf5 {[%clk 00:14:31]} {[%emt 00:00:09]} 8. c4 {[%clk 00:14:33]} {[%emt
00:00:16]} Qe4 {[%clk 00:14:20]} {[%emt 00:00:16]} 9. d3 {[%clk 00:14:34]}
{[%emt 00:00:04]} Qxe3+ {[%clk 00:14:17]} {[%emt 00:00:09]} 10. fxe3 {[%clk
00:14:36]} {[%emt 00:00:02]} Nd7 {[%clk 00:14:05]} {[%emt 00:00:17]} 11. d4
{[%clk 00:14:33]} {[%emt 00:00:08]} e5 {[%clk 00:14:00]} {[%emt 00:00:11]} 12.
Bd2 {[%clk 00:14:36]} {[%emt 00:00:02]} Bd6 {[%clk 00:13:35]} {[%emt 00:00:29]}
13. Be2 {[%clk 00:14:34]} {[%emt 00:00:07]} O-O {[%clk 00:13:20]} {[%emt
00:00:20]} 14. O-O {[%clk 00:14:35]} {[%emt 00:00:04]} Bg4 {[%clk 00:12:50]}
{[%emt 00:00:35]} 15. h3 {[%clk 00:14:30]} {[%emt 00:00:10]} Bh5 {[%clk
00:12:50]} {[%emt 00:00:05]} 16. g4 {[%clk 00:13:19]} {[%emt 00:01:16]} Bg6
{[%clk 00:12:53]} {[%emt 00:00:02]} 17. Nh4 {[%clk 00:13:20]} {[%emt 00:00:04]}
exd4 {[%clk 00:12:01]} {[%emt 00:00:57]} 18. Nxg6 {[%clk 00:13:19]} {[%emt
00:00:06]} hxg6 {[%clk 00:11:51]} {[%emt 00:00:15]} 19. exd4 {[%clk 00:13:22]}
{[%emt 00:00:02]} Rfe8 {[%clk 00:11:14]} {[%emt 00:00:43]} 20. Bf3 {[%clk
00:13:10]} {[%emt 00:00:15]} Nf6 {[%clk 00:10:28]} {[%emt 00:00:52]} 21. Rae1
{[%clk 00:13:03]} {[%emt 00:00:13]} Kf8 {[%clk 00:10:32]} {[%emt 00:00:02]} 22.
Rxe8+ {[%clk 00:12:53]} {[%emt 00:00:14]} Rxe8 {[%clk 00:10:35]} {[%emt
00:00:02]} 23. Re1 {[%clk 00:12:48]} {[%emt 00:00:10]} Rxe1+ {[%clk 00:10:14]}
{[%emt 00:00:27]} 24. Bxe1 {[%clk 00:12:51]} {[%emt 00:00:01]} Bf4 {[%clk
00:10:18]} 25. Kf2 {[%clk 00:12:44]} {[%emt 00:00:11]} Ke7 {[%clk 00:10:22]}
{[%emt 00:00:02]} 26. Ke2 {[%clk 00:12:44]} {[%emt 00:00:05]} Nh7 {[%clk
00:09:41]} {[%emt 00:00:46]} 27. h4 {[%clk 00:12:05]} {[%emt 00:00:44]} Nf8
{[%clk 00:09:34]} {[%emt 00:00:12]} 28. Bb4+ {[%clk 00:11:08]} {[%emt
00:01:02]} Ke8 {[%clk 00:09:38]} 29. d5 {[%clk 00:10:15]} {[%emt 00:00:58]}
cxd5 {[%clk 00:09:42]} {[%emt 00:00:01]} 30. Bxd5 {[%clk 00:10:11]} {[%emt
00:00:09]} b6 {[%clk 00:09:47]} 31. Bc6+ {[%clk 00:04:12]} {[%emt 00:06:04]}
Nd7 {[%clk 00:09:50]} {[%emt 00:00:02]} 32. Bc3 {[%clk 00:04:11]} {[%emt
00:00:05]} f6 {[%clk 00:09:38]} {[%emt 00:00:17]} 33. Kf3 {[%clk 00:04:11]}
{[%emt 00:00:05]} Bd6 {[%clk 00:09:03]} {[%emt 00:00:41]} 34. g5 {[%clk
00:03:08]} {[%emt 00:01:08]} Be7 {[%clk 00:06:52]} {[%emt 00:02:16]} 35. Ke4
{[%clk 00:00:54]} {[%emt 00:02:19]} fxg5 {[%clk 00:06:50]} {[%emt 00:00:07]} 36.
hxg5 {[%clk 00:00:56]} {[%emt 00:00:03]} Bxg5 {[%clk 00:06:54]} {[%emt
00:00:02]} 37. Bxg7 {[%clk 00:00:53]} {[%emt 00:00:07]} Ke7 {[%clk 00:06:33]}
{[%emt 00:00:26]} 38. Bc3 {[%clk 00:00:12]} {[%emt 00:00:46]} Nf6+ {[%clk
00:05:43]} {[%emt 00:00:55]} 39. Bxf6+ {[%clk 00:00:11]} {[%emt 00:00:05]}
1/2-1/2

[Event "MČR v rapid šachu družstev 2019"]
[Site "Teplice, Czech Republic"]
[Date "2019.09.15"]
[Round "3.10"]
[White "Zeman, Matyas"]
[Black "Studnicka, Tomas"]
[Result "0-1"]
[TimeControl "15 min. + 5s"]
[WhiteElo "2247"]
[BlackElo "2379"]

1. Nf3 {[%clk 00:15:07]} {[%emt 00:00:03]} c5 {[%clk 00:15:02]} {[%emt
00:00:09]} 2. e4 {[%clk 00:15:04]} {[%emt 00:00:07]} Nc6 {[%clk 00:15:02]}
{[%emt 00:00:05]} 3. Bb5 {[%clk 00:15:04]} {[%emt 00:00:05]} g6 {[%clk
00:15:00]} {[%emt 00:00:08]} 4. Bxc6 {[%clk 00:15:02]} {[%emt 00:00:07]} bxc6
{[%clk 00:14:49]} {[%emt 00:00:16]} 5. d4 {[%clk 00:15:04]} {[%emt 00:00:02]}
Bg7 {[%clk 00:14:17]} {[%emt 00:00:36]} 6. dxc5 {[%clk 00:14:48]} {[%emt
00:00:22]} Qa5+ {[%clk 00:14:21]} {[%emt 00:00:02]} 7. c3 {[%clk 00:14:43]}
{[%emt 00:00:10]} Qxc5 {[%clk 00:14:09]} {[%emt 00:00:17]} 8. O-O {[%clk
00:14:02]} {[%emt 00:00:45]} Nf6 {[%clk 00:14:06]} {[%emt 00:00:08]} 9. Re1
{[%clk 00:13:53]} {[%emt 00:00:14]} O-O {[%clk 00:13:46]} {[%emt 00:00:25]} 10.
h3 {[%clk 00:13:42]} {[%emt 00:00:16]} d5 {[%clk 00:11:37]} {[%emt 00:02:14]}
11. exd5 {[%clk 00:11:15]} {[%emt 00:02:33]} cxd5 {[%clk 00:11:40]} {[%emt
00:00:02]} 12. Be3 {[%clk 00:10:49]} {[%emt 00:00:30]} Qc7 {[%clk 00:10:46]}
{[%emt 00:00:58]} 13. Bd4 {[%clk 00:10:38]} {[%emt 00:00:17]} Bb7 {[%clk
00:10:42]} {[%emt 00:00:09]} 14. Nbd2 {[%clk 00:09:59]} {[%emt 00:00:44]} a5
{[%clk 00:10:18]} {[%emt 00:00:29]} 15. Qb3 {[%clk 00:08:15]} {[%emt 00:01:49]}
e6 {[%clk 00:09:06]} {[%emt 00:01:18]} 16. a4 {[%clk 00:06:50]} {[%emt
00:01:30]} Rfc8 {[%clk 00:08:44]} {[%emt 00:00:27]} 17. Be5 {[%clk 00:05:46]}
{[%emt 00:01:09]} Qd7 {[%clk 00:08:18]} {[%emt 00:00:31]} 18. Nd4 {[%clk
00:05:02]} {[%emt 00:00:50]} Nh5 {[%clk 00:05:25]} {[%emt 00:02:57]} 19. Bxg7
{[%clk 00:04:56]} {[%emt 00:00:11]} Kxg7 {[%clk 00:05:28]} {[%emt 00:00:02]} 20.
N2f3 {[%clk 00:04:53]} {[%emt 00:00:08]} Rab8 {[%clk 00:04:44]} {[%emt
00:00:50]} 21. Ne5 {[%clk 00:04:40]} {[%emt 00:00:18]} Qe7 {[%clk 00:04:48]}
{[%emt 00:00:01]} 22. Qb6 {[%clk 00:02:25]} {[%emt 00:02:20]} Ba8 {[%clk
00:04:22]} {[%emt 00:00:31]} 23. Qa6 {[%clk 00:02:29]} Nf4 {[%clk 00:04:06]}
{[%emt 00:00:20]} 24. g3 {[%clk 00:00:51]} {[%emt 00:01:43]} Nxh3+ {[%clk
00:03:36]} {[%emt 00:00:36]} 25. Kg2 {[%clk 00:00:55]} Ng5 {[%clk 00:03:17]}
{[%emt 00:00:23]} 26. Re2 {[%clk 00:00:38]} {[%emt 00:00:23]} h5 {[%clk
00:02:48]} {[%emt 00:00:35]} 27. f4 {[%clk 00:00:10]} {[%emt 00:00:33]} Ne4
{[%clk 00:02:03]} {[%emt 00:00:50]} 28. Nec6 {[%clk 00:00:14]} {[%emt
00:00:01]} Bxc6 {[%clk 00:01:52]} 29. Nxc6 {[%clk 00:00:18]} Rxc6 {[%clk
00:01:31]} {[%emt 00:00:27]} 30. Qxc6 h4 31. Rxe4 {[%clk 00:00:09]} {[%emt
00:00:18]} dxe4 {[%clk 00:01:38]} {[%emt 00:00:02]} 32. Qxe4 {[%clk 00:00:10]}
{[%emt 00:00:05]} Rxb2+ {[%emt 00:00:02]} 33. Kh3 hxg3 {[%clk 00:01:44]} {[%emt
00:00:01]} 34. Kxg3 {[%clk 00:00:13]} {[%emt 00:00:06]} Qc5 {[%clk 00:01:48]}
35. Qe5+ {[%clk 00:00:17]} {[%emt 00:00:02]} Qxe5 36. fxe5 {[%clk 00:00:21]}
Rc2 {[%clk 00:01:50]} {[%emt 00:00:06]} 37. Ra3 {[%clk 00:00:16]} {[%emt
00:00:10]} g5 {[%clk 00:01:51]} {[%emt 00:00:04]} 38. Kf3 {[%clk 00:00:17]}
{[%emt 00:00:03]} Kg6 {[%clk 00:01:52]} {[%emt 00:00:04]} 39. Ke4 {[%clk
00:00:22]} Kh5 {[%clk 00:01:49]} {[%emt 00:00:08]} 40. Kd3 {[%clk 00:00:18]}
{[%emt 00:00:09]} Rc1 {[%clk 00:01:53]} {[%emt 00:00:01]} 41. Ra2 {[%clk
00:00:20]} {[%emt 00:00:02]} g4 {[%clk 00:01:56]} {[%emt 00:00:02]} 42. Rh2+
{[%clk 00:00:09]} {[%emt 00:00:16]} Kg5 {[%clk 00:01:48]} {[%emt 00:00:14]} 43.
Rh7 {[%clk 00:00:13]} Kg6 {[%clk 00:01:49]} {[%emt 00:00:04]} 44. Rh8 {[%clk
00:00:17]} {[%emt 00:00:01]} Kf5 {[%clk 00:01:53]} 45. Rf8 {[%clk 00:00:11]}
{[%emt 00:00:11]} g3 {[%clk 00:01:57]} {[%emt 00:00:02]} 46. Rxf7+ {[%clk
00:00:15]} {[%emt 00:00:01]} Kxe5 {[%clk 00:02:00]} {[%emt 00:00:01]} 47. Rg7
{[%clk 00:00:10]} {[%emt 00:00:11]} Kf4 {[%clk 00:02:04]} {[%emt 00:00:01]} 48.
Kd2 {[%clk 00:00:13]} {[%emt 00:00:01]} Ra1 {[%clk 00:02:05]} {[%emt 00:00:03]}
49. c4 {[%clk 00:00:08]} {[%emt 00:00:10]} g2 {[%clk 00:02:08]} {[%emt
00:00:02]} 50. Ke1 {[%emt 00:00:12]} Ke5+ 0-1

[Event "MČR v rapid šachu družstev 2019"]
[Site "Teplice, Czech Republic"]
[Date "2019.09.15"]
[Round "3.11"]
[White "Sodoma, Jan"]
[Black "Svanda, Ondrej"]
[Result "1-0"]
[TimeControl "15 min. + 5s"]
[WhiteElo "2358"]
[BlackElo "1920"]

1. Nf3 {[%clk 00:15:08]} {[%emt 00:00:02]} c5 {[%clk 00:15:09]} {[%emt
00:00:01]} 2. g3 {[%clk 00:15:09]} {[%emt 00:00:04]} g6 {[%clk 00:15:13]}
{[%emt 00:00:01]} 3. d4 {[%clk 00:15:07]} {[%emt 00:00:06]} cxd4 {[%clk
00:15:16]} {[%emt 00:00:02]} 4. Nxd4 {[%clk 00:15:07]} {[%emt 00:00:05]} Bg7
{[%clk 00:15:18]} {[%emt 00:00:03]} 5. Bg2 {[%clk 00:15:06]} {[%emt 00:00:06]}
Nc6 {[%clk 00:15:21]} {[%emt 00:00:02]} 6. Nb3 {[%clk 00:15:01]} {[%emt
00:00:10]} Nf6 {[%clk 00:15:24]} {[%emt 00:00:02]} 7. c4 {[%clk 00:15:02]}
{[%emt 00:00:04]} d6 {[%clk 00:15:15]} {[%emt 00:00:14]} 8. O-O {[%clk
00:14:57]} {[%emt 00:00:10]} O-O {[%clk 00:15:18]} {[%emt 00:00:02]} 9. Nc3
{[%clk 00:15:01]} {[%emt 00:00:01]} Bf5 {[%clk 00:14:14]} {[%emt 00:01:08]} 10.
c5 {[%clk 00:14:44]} {[%emt 00:00:22]} dxc5 {[%clk 00:13:35]} {[%emt 00:00:45]}
11. Nxc5 {[%clk 00:14:46]} {[%emt 00:00:04]} Qb6 {[%clk 00:12:14]} {[%emt
00:01:25]} 12. N3a4 {[%clk 00:14:48]} {[%emt 00:00:04]} Qc7 {[%clk 00:12:13]}
{[%emt 00:00:05]} 13. Bf4 {[%clk 00:13:41]} {[%emt 00:01:12]} e5 {[%clk
00:12:13]} {[%emt 00:00:06]} 14. Bg5 {[%clk 00:13:44]} b6 {[%clk 00:10:56]}
{[%emt 00:01:23]} 15. Bxf6 {[%clk 00:12:56]} {[%emt 00:00:53]} Bxf6 {[%clk
00:10:53]} {[%emt 00:00:08]} 16. Ne4 {[%clk 00:13:00]} {[%emt 00:00:01]} Bg7
{[%clk 00:08:34]} {[%emt 00:02:24]} 17. Rc1 {[%clk 00:12:46]} {[%emt 00:00:18]}
b5 {[%clk 00:08:28]} {[%emt 00:00:12]} 18. Nac3 {[%clk 00:11:23]} {[%emt
00:01:28]} Qa5 {[%clk 00:07:13]} {[%emt 00:01:19]} 19. Nd6 {[%clk 00:09:38]}
{[%emt 00:01:49]} b4 {[%clk 00:06:02]} {[%emt 00:01:17]} 20. Nd5 {[%clk
00:09:32]} {[%emt 00:00:10]} Nd4 {[%clk 00:05:09]} {[%emt 00:00:58]} 21. Ne7+
{[%clk 00:09:30]} {[%emt 00:00:07]} Kh8 {[%clk 00:05:13]} {[%emt 00:00:02]} 22.
Bxa8 {[%clk 00:09:33]} {[%emt 00:00:02]} Rxa8 {[%clk 00:05:09]} {[%emt
00:00:09]} 23. Nxf7# {[%emt 00:00:03]} 1-0

[Event "MČR v rapid šachu družstev 2019"]
[Site "Teplice, Czech Republic"]
[Date "2019.09.15"]
[Round "3.12"]
[White "Skacelik, Petr"]
[Black "Cech, Pavel"]
[Result "1/2-1/2"]
[TimeControl "15 min. + 5s"]
[WhiteElo "2096"]
[BlackElo "2394"]

1. d4 {[%clk 00:15:09]} {[%emt 00:01:36]} d5 {[%clk 00:15:08]} {[%emt
00:00:03]} 2. c4 {[%clk 00:15:13]} {[%emt 00:00:02]} c6 {[%clk 00:15:11]}
{[%emt 00:00:01]} 3. Nc3 {[%clk 00:15:17]} Nf6 {[%emt 00:00:02]} 4. Nf3 dxc4
{[%clk 00:15:16]} {[%emt 00:00:03]} 5. a4 {[%clk 00:15:24]} {[%emt 00:00:02]}
Bf5 {[%clk 00:15:17]} {[%emt 00:00:04]} 6. e3 {[%clk 00:15:24]} {[%emt
00:00:05]} e6 {[%clk 00:15:20]} {[%emt 00:00:02]} 7. Bxc4 {[%clk 00:15:28]}
{[%emt 00:00:02]} Bb4 {[%clk 00:15:22]} {[%emt 00:00:02]} 8. O-O {[%clk
00:15:31]} {[%emt 00:00:02]} O-O {[%clk 00:15:24]} {[%emt 00:00:03]} 9. Qe2
{[%clk 00:15:36]} {[%emt 00:00:01]} Nbd7 {[%clk 00:15:02]} {[%emt 00:00:26]} 10.
e4 {[%clk 00:15:38]} {[%emt 00:00:03]} Bg6 {[%clk 00:15:06]} 11. Bd3 {[%clk
00:15:42]} {[%emt 00:00:01]} Bh5 {[%clk 00:13:24]} {[%emt 00:01:47]} 12. e5
{[%clk 00:13:53]} {[%emt 00:01:54]} Nd5 {[%clk 00:13:27]} {[%emt 00:00:02]} 13.
Nxd5 {[%clk 00:13:57]} {[%emt 00:00:01]} cxd5 {[%clk 00:13:30]} {[%emt
00:00:01]} 14. Qe3 {[%clk 00:13:16]} {[%emt 00:00:46]} Be7 {[%clk 00:11:56]}
{[%emt 00:01:39]} 15. Bd2 {[%clk 00:12:47]} {[%emt 00:00:35]} Nb8 {[%clk
00:11:54]} {[%emt 00:00:06]} 16. Rac1 {[%clk 00:12:44]} {[%emt 00:00:08]} Nc6
{[%clk 00:11:21]} {[%emt 00:00:38]} 17. Bb5 {[%clk 00:12:37]} {[%emt 00:00:13]}
Bxf3 {[%clk 00:10:29]} {[%emt 00:00:57]} 18. gxf3 {[%clk 00:12:40]} {[%emt
00:00:02]} Qb6 {[%clk 00:09:36]} {[%emt 00:00:58]} 19. Bc3 {[%clk 00:12:24]}
{[%emt 00:00:21]} Rfc8 {[%clk 00:08:22]} {[%emt 00:01:19]} 20. Kh1 {[%clk
00:12:27]} {[%emt 00:00:02]} Nb4 {[%clk 00:08:10]} {[%emt 00:00:17]} 21. Rg1
{[%clk 00:12:25]} {[%emt 00:00:07]} g6 {[%clk 00:08:12]} {[%emt 00:00:02]} 22.
Rg3 {[%clk 00:12:06]} {[%emt 00:00:25]} Na2 {[%clk 00:06:15]} {[%emt 00:02:02]}
23. Rcg1 {[%clk 00:10:35]} {[%emt 00:01:36]} a6 {[%clk 00:06:11]} {[%emt
00:00:08]} 24. Be2 {[%clk 00:08:16]} {[%emt 00:02:24]} Nxc3 {[%clk 00:04:31]}
{[%emt 00:01:45]} 25. bxc3 {[%clk 00:08:21]} {[%emt 00:00:01]} Qb2 {[%clk
00:04:32]} {[%emt 00:00:03]} 26. f4 {[%clk 00:08:23]} {[%emt 00:00:03]} Qc2
{[%clk 00:04:23]} {[%emt 00:00:13]} 27. Bd3 {[%clk 00:07:55]} {[%emt 00:00:34]}
Qxa4 {[%clk 00:03:40]} {[%emt 00:00:48]} 28. f5 {[%clk 00:07:54]} {[%emt
00:00:06]} exf5 {[%clk 00:03:34]} {[%emt 00:00:11]} 29. e6 {[%clk 00:07:58]}
{[%emt 00:00:01]} Bd6 {[%clk 00:03:01]} {[%emt 00:00:38]} 30. Rh3 {[%clk
00:08:01]} {[%emt 00:00:02]} f4 {[%clk 00:02:40]} {[%emt 00:00:26]} 31. exf7+
{[%clk 00:07:59]} {[%emt 00:00:07]} Kg7 {[%clk 00:02:44]} {[%emt 00:00:01]} 32.
Qf3 {[%clk 00:07:53]} {[%emt 00:00:11]} Rh8 {[%clk 00:02:21]} {[%emt 00:00:27]}
33. Qxd5 {[%clk 00:07:55]} {[%emt 00:00:04]} Qc6 {[%clk 00:02:25]} {[%emt
00:00:01]} 34. Qxc6 {[%clk 00:07:54]} {[%emt 00:00:06]} bxc6 {[%clk 00:02:29]}
{[%emt 00:00:01]} 35. Bc4 {[%clk 00:07:58]} a5 {[%clk 00:02:15]} {[%emt
00:00:18]} 36. Rd3 {[%clk 00:07:54]} {[%emt 00:00:09]} a4 {[%clk 00:02:17]}
{[%emt 00:00:03]} 37. Re1 {[%clk 00:07:12]} {[%emt 00:00:46]} a3 {[%clk
00:02:19]} {[%emt 00:00:02]} 38. Rd2 {[%clk 00:07:16]} {[%emt 00:00:03]} Rhb8
{[%clk 00:02:06]} {[%emt 00:00:18]} 39. Kg2 {[%clk 00:06:52]} {[%emt 00:00:30]}
Ra4 {[%clk 00:02:03]} {[%emt 00:00:07]} 40. Ba2 {[%clk 00:06:41]} {[%emt
00:00:16]} Rb2 {[%clk 00:01:59]} {[%emt 00:00:09]} 41. Ree2 {[%clk 00:06:45]}
{[%emt 00:00:01]} Rxd2 {[%emt 00:00:01]} 42. Rxd2 {[%emt 00:00:05]} c5 {[%clk
00:01:37]} {[%emt 00:00:20]} 43. dxc5 {[%clk 00:06:09]} {[%emt 00:00:42]} Bxc5
{[%clk 00:01:41]} {[%emt 00:00:01]} 44. Rd5 {[%clk 00:05:57]} {[%emt 00:00:16]}
Bf8 {[%clk 00:01:34]} {[%emt 00:00:13]} 45. Rd4 {[%clk 00:06:01]} {[%emt
00:00:01]} Rxd4 {[%clk 00:01:29]} {[%emt 00:00:10]} 46. cxd4 {[%clk 00:06:05]}
g5 {[%clk 00:01:04]} {[%emt 00:00:30]} 47. Kf3 {[%clk 00:06:07]} {[%emt
00:00:04]} h5 {[%clk 00:01:08]} 48. h3 {[%clk 00:06:11]} Kf6 {[%clk 00:01:03]}
{[%emt 00:00:09]} 49. Ke4 {[%emt 00:00:14]} Ke5+ 1/2-1/2